bitfinex/quotes_ETHUSD_20250519
["timestamp","ask_amount","ask_price","bid_price","bid_amount"]
[1747620057820,4.11877461,2428.0,2427.6,9.61194879]
[1747620058023,4.11878898,2427.9,2427.6,9.61194879]
[1747620058321,8.249,2428.3,2427.6,8.25541488]
[1747620058485,4.11912509,2427.7,2427.6,8.25541488]
[1747620058680,4.11912509,2427.7,2427.6,0.00241488]
[1747620060199,4.11905714,2427.8,2427.6,0.00241488]
[1747620060523,4.11912509,2427.7,2427.6,0.00241488]
[1747620060823,4.11912509,2427.7,2427.6,8.25641488]
[1747620062427,4.88460336,2428.2,2427.6,8.25641488]
[1747620062628,4.11912509,2427.7,2427.6,8.25641488]
[1747620063189,4.90942509,2427.7,2427.6,0.00241488]
[1747620063394,13.15842509,2427.7,2427.6,0.00241488]
[1747620063907,4.91044338,2427.1,2427.0,0.31073416]
[1747620064108,13.16444338,2427.1,2427.0,0.31073416]
[1747620064453,5.87258711,2427.1,2427.0,0.31073416]
[1747620064807,4.12012519,2427.2,2427.0,0.31073416]
[1747620065213,8.268,2427.7,2427.0,4.12020831]
[1747620065355,4.11951167,2427.5,2427.2,0.8287]
[1747620066243,8.263,2427.9,2427.2,0.8287]
[1747620066448,4.11956279,2427.5,2427.2,0.8287]
[1747620066643,4.11956279,2427.5,2427.2,2.14899978]
[1747620067326,4.11937136,2427.6,2427.2,2.14899978]
[1747620067740,4.11899212,2427.8,2427.2,6.26895858]
[1747620067941,4.11867386,2428.0,2427.3,4.66976444]
[1747620067942,8.264,2428.0,2427.3,4.66976444]
[1747620068239,4.11896434,2427.8,2427.3,6.17704086]
[1747620068435,4.11896434,2427.8,2427.3,2.05727642]
[1747620068436,4.11906606,2427.8,2427.3,2.05727642]
[1747620068638,4.11906606,2427.8,2427.3,2.30494983]
[1747620069277,4.119127,2427.7,2427.3,2.30494983]
[1747620069460,8.264,2428.0,2427.3,0.24767341]
[1747620069670,4.11929616,2427.6,2427.3,0.24767341]
[1747620069868,4.11919153,2427.7,2427.3,0.24767341]
[1747620070374,4.11878688,2427.9,2427.4,0.04119306]
[1747620070580,8.259,2428.0,2427.4,0.24767341]
[1747620070756,4.11923165,2427.7,2427.4,0.24767341]
[1747620071078,4.11933388,2427.6,2427.4,0.24767341]
[1747620071239,4.11897593,2427.8,2427.4,0.24767341]
[1747620071453,4.11930929,2427.6,2427.5,8.26]
[1747620071895,0.24,2428.2,2427.5,8.26]
[1747620072077,4.11906464,2427.8,2427.6,0.7648]
[1747620072288,4.11912509,2427.7,2427.5,8.26]
[1747620072857,4.11912509,2427.7,2427.6,0.24767341]
[1747620073797,0.75852145,2428.2,2427.6,0.24767341]
[1747620074096,5.92108432,2430.7,2427.6,0.24767341]
[1747620074097,9.2884,2428.9,2427.9,0.7786]
[1747620074259,9.2884,2428.9,2428.0,8.26]
[1747620074578,0.24,2428.9,2428.2,0.7786]
[1747620074778,4.11789918,2428.5,2428.2,0.7786]
[1747620074976,4.1181046,2428.4,2428.2,0.7786]
[1747620075282,4.1178554,2428.5,2428.2,0.7786]
[1747620075484,4.11725955,2428.8,2428.2,0.7786]
[1747620075686,4.11767779,2428.6,2428.2,0.7786]
[1747620076290,0.24,2428.9,2428.3,0.24767341]
[1747620076567,4.11793773,2428.4,2428.3,0.24767341]
[1747620076767,4.11793773,2428.4,2428.3,8.50767341]
[1747620077597,4.11793773,2428.4,2428.3,0.24767341]
[1747620077796,6.5903109,2428.4,2428.3,0.24767341]
[1747620078093,4.11895543,2427.8,2427.7,0.31073416]
[1747620078393,4.11881164,2427.9,2427.5,17.787]
[1747620078394,4.11929477,2427.6,2427.5,18.09773416]
[1747620078895,4.11912549,2427.7,2427.5,18.09773416]
[1747620079088,4.11929477,2427.6,2427.5,18.09773416]
[1747620079666,4.94313874,2427.6,2427.5,18.3454621]
[1747620080796,4.94313874,2427.6,2427.5,0.5584621]
[1747620081262,4.11915939,2427.7,2427.5,1.3222621]
[1747620081459,4.11907984,2427.8,2427.6,8.259]
[1747620081679,4.11885833,2427.9,2427.6,8.259]
[1747620081895,4.11844085,2428.2,2427.6,12.37815418]
[1747620082097,12.38514251,2428.3,2427.7,1.31419542]
[1747620082321,4.11807718,2428.4,2427.9,0.8237]
[1747620082531,4.1177206,2428.6,2428.0,4.11851794]
[1747620082668,4.1177206,2428.6,2428.1,8.259]
[1747620083398,0.24,2429.2,2428.3,0.7602]
[1747620083603,4.11642644,2429.3,2428.6,4.11748546]
[1747620083768,4.1167154,2429.2,2428.7,9.06036753]
[1747620083966,0.6172216,2429.4,2428.7,9.0192]
[1747620083967,4.11681065,2429.1,2428.7,9.0192]
[1747620084287,4.11714342,2428.9,2428.7,9.0192]
[1747620084488,4.1169784,2429.0,2428.7,9.0192]
[1747620084692,4.116688,2429.2,2428.7,11.69962]
[1747620084897,4.11675756,2429.1,2428.7,11.69962]
[1747620085082,4.11590385,2429.6,2428.8,4.36475099]
[1747620085266,10.36053818,2429.7,2428.9,0.55]
[1747620085466,4.11590385,2429.6,2428.8,0.24749611]
[1747620085770,4.11709004,2428.9,2428.8,0.24749611]
[1747620086617,4.11742907,2428.7,2428.6,26.044]
[1747620087485,4.11810731,2428.3,2428.2,0.7602]
[1747620087812,4.11799952,2428.4,2428.2,9.26480175]
[1747620087971,4.11778246,2428.5,2428.2,9.26480175]
[1747620088702,0.24,2429.2,2428.2,9.26480175]
[1747620088923,0.24,2429.2,2428.3,9.6372]
[1747620089072,9.1152,2429.7,2428.8,0.55]
[1747620089407,4.11649808,2429.3,2428.9,8.258]
[1747620089597,4.11660301,2429.2,2429.0,0.7848]
[1747620089800,4.11645807,2429.3,2429.0,0.7848]
[1747620090103,0.24,2429.8,2429.1,0.94544334]
[1747620090104,4.1160426,2429.6,2429.1,0.94544334]
[1747620090313,4.11616098,2429.5,2429.2,0.55]
[1747620090608,4.11594738,2429.6,2429.2,0.55]
[1747620091073,4.11594738,2429.6,2429.1,0.90428]
[1747620091074,4.11577985,2429.7,2429.3,8.257]
[1747620091273,4.11624269,2429.4,2429.3,8.257]
[1747620091870,0.24,2429.8,2429.3,8.257]
[1747620092111,4.1160046,2429.6,2429.3,8.257]
[1747620092302,4.1161084,2429.5,2429.3,8.257]
[1747620092508,0.24,2429.8,2429.0,0.7848]
[1747620092669,4.90813445,2429.7,2429.3,8.257]
[1747620092873,4.11624269,2429.4,2429.3,8.257]
[1747620093106,4.11624269,2429.4,2429.0,0.7848]
[1747620093107,4.11675106,2429.1,2429.0,0.7848]
[1747620093283,4.11694283,2429.0,2428.8,17.782]
[1747620093484,4.11776816,2428.5,2428.4,0.31073416]
[1747620093995,4.92966816,2428.5,2428.4,0.31073416]
[1747620094399,13.28066816,2428.5,2428.4,0.31073416]
[1747620094784,13.27666816,2428.5,2428.4,0.31073416]
[1747620095113,4.11776816,2428.5,2428.4,0.31073416]
[1747620095284,12.11694283,2429.0,2428.4,0.31073416]
[1747620095285,0.8112,2429.2,2428.4,8.56773416]
[1747620095492,4.11771127,2428.6,2428.4,8.56773416]
[1747620095705,4.11675106,2429.1,2428.4,8.56773416]
[1747620096214,4.11675106,2429.1,2428.4,8.257]
[1747620096581,4.11755158,2428.7,2428.4,8.257]
[1747620096806,4.11755158,2428.7,2428.5,2.6038]
[1747620097179,4.1171214,2428.9,2428.6,0.7866]
[1747620097378,4.11742907,2428.7,2428.6,0.7866]
[1747620097609,4.11727946,2428.8,2428.4,8.257]
[1747620097610,4.11776816,2428.5,2428.4,8.257]
[1747620097984,4.11793773,2428.4,2428.3,18.5676]
[1747620098315,8.24,2429.3,2428.3,28.76743342]
[1747620098610,4.11712579,2428.9,2428.3,28.76743342]
[1747620098790,4.11743105,2428.7,2428.3,28.76743342]
[1747620099178,4.11793773,2428.4,2428.3,28.76743342]
[1747620099377,12.35643412,2429.3,2428.3,28.76743342]
[1747620099629,4.11777458,2428.5,2428.3,26.8246]
[1747620099780,4.11760471,2428.6,2428.3,26.8246]
[1747620100411,4.11793773,2428.4,2428.3,17.781]
[1747620100713,4.11793773,2428.4,2428.3,26.136]
[1747620101218,2.83424341,2429.2,2428.3,26.136]
[1747620101385,4.11675106,2429.1,2428.4,3.4002]
[1747620101581,4.11750512,2428.7,2428.4,3.4002]
[1747620101785,4.11761268,2428.6,2428.4,3.4002]
[1747620102119,4.11761268,2428.6,2428.3,26.136]
[1747620102120,4.11793773,2428.4,2428.3,26.136]
[1747620103614,4.11861614,2428.0,2427.9,0.31073416]
[1747620103913,4.11861614,2428.0,2427.9,8.355]
[1747620105419,4.11811601,2428.3,2427.9,8.355]
[1747620105586,4.11829583,2428.2,2427.9,8.355]
[1747620105781,4.11793773,2428.4,2427.6,18.40617659]
[1747620106092,4.11875629,2428.0,2427.7,8.355]
[1747620106419,4.11875629,2428.0,2427.7,8.60231693]
[1747620106916,4.11853029,2428.1,2427.7,8.60231693]
[1747620107419,4.11797023,2428.4,2427.7,12.72135995]
[1747620107617,8.343,2428.8,2427.9,0.8263]
[1747620107820,0.43571223,2428.8,2428.0,4.70975823]
[1747620108116,4.11761019,2428.6,2428.1,4.11835564]
[1747620108325,4.11716024,2428.9,2428.3,0.7818]
[1747620108505,4.11761211,2428.6,2428.3,0.7818]
[1747620109312,8.349,2429.0,2428.3,0.7818]
[1747620109510,0.801,2429.2,2428.3,0.7818]
[1747620109712,0.801,2429.2,2428.4,0.91378]
[1747620109913,0.801,2429.2,2428.0,0.86073416]
[1747620109914,9.157,2429.2,2428.0,1.08053416]
[1747620110122,4.11810731,2428.3,2428.2,8.356]
[1747620112187,4.11844652,2428.1,2428.0,0.31073416]
[1747620112392,4.93574652,2428.1,2428.0,0.31073416]
[1747620112605,6.25296229,2428.1,2428.0,0.31073416]
[1747620113291,4.1189818,2427.8,2427.6,26.136]
[1747620114001,4.11912509,2427.7,2427.6,26.136]
[1747620114624,4.11912509,2427.7,2427.6,17.781]
[1747620114829,4.11929477,2427.6,2427.5,8.356]
[1747620115026,4.11929477,2427.6,2427.3,0.31073416]
[1747620115027,4.11963417,2427.4,2427.3,0.31073416]
[1747620115692,12.45263417,2427.4,2427.3,0.31073416]
[1747620116097,4.11963417,2427.4,2427.3,0.31073416]
[1747620116397,12.46363417,2427.4,2427.3,0.31073416]
[1747620116591,4.11897501,2427.8,2427.3,4.43052372]
[1747620116592,4.11904333,2427.8,2427.3,4.43052372]
[1747620116791,0.8111,2428.3,2427.5,0.8263]
[1747620116993,12.47393773,2428.4,2427.5,0.8263]
[1747620117223,4.11793773,2428.4,2427.7,0.8263]
[1747620117423,4.11858683,2428.1,2427.7,0.8263]
[1747620117588,0.24,2428.5,2427.7,0.8263]
[1747620117792,4.11888816,2427.9,2427.7,0.8263]
[1747620117989,4.11895543,2427.8,2427.7,0.8263]
[1747620118213,4.11797103,2428.4,2427.7,0.8263]
[1747620118214,4.11869194,2428.0,2427.7,0.8263]
[1747620118531,4.11889013,2427.9,2427.7,0.8263]
[1747620118898,4.11928911,2427.7,2427.4,9.56965237]
[1747620119126,4.11928911,2427.7,2427.4,9.1266]
[1747620119319,4.11903923,2427.8,2427.4,9.1266]
[1747620120132,4.11903923,2427.8,2427.5,0.24738291]
[1747620121130,4.11815036,2428.3,2427.8,0.7696]
[1747620121335,4.11791649,2428.5,2427.9,8.84585703]
[1747620121562,4.11811398,2428.3,2428.0,0.55]
[1747620121726,0.8175,2428.9,2427.9,26.94021306]
[1747620121941,4.11802959,2428.4,2428.0,0.24738291]
[1747620122129,0.8175,2428.9,2428.0,8.60438291]
[1747620122130,4.11844652,2428.1,2428.0,8.60438291]
[1747620122329,4.11844652,2428.1,2428.0,0.24738291]
[1747620123257,12.48644652,2428.1,2428.0,0.24738291]
[1747620123424,4.11923549,2427.7,2427.5,8.357]
[1747620123859,4.11929477,2427.6,2427.5,8.357]
[1747620124155,4.11929477,2427.6,2427.1,0.31073416]
[1747620124156,4.11946446,2427.5,2427.1,0.31073416]
[1747620124368,4.11997363,2427.2,2427.1,0.31073416]
[1747620125154,4.11994535,2427.3,2427.1,0.31073416]
[1747620125355,0.41192948,2427.6,2427.1,0.31073416]
[1747620125559,4.93123464,2427.9,2427.1,0.31073416]
[1747620125720,0.8123,2427.9,2427.0,8.357]
[1747620125925,4.1195672,2427.5,2427.0,8.357]
[1747620126120,4.35871144,2428.0,2427.1,1.34989573]
[1747620126121,0.24,2428.0,2427.1,1.34989573]
[1747620126361,0.24,2428.0,2427.1,1.3087]
[1747620126362,4.11947841,2427.5,2427.1,1.3087]
[1747620126658,4.11947841,2427.5,2427.1,3.52449143]
[1747620126855,0.24,2428.0,2427.2,0.24768756]
[1747620127060,4.11980389,2427.3,2427.2,0.24768756]
[1747620127222,0.24,2428.0,2427.2,8.60468756]
[1747620127223,4.11971657,2427.4,2427.2,8.60468756]
[1747620127421,4.11917572,2427.7,2427.2,8.60468756]
[1747620127735,4.11917572,2427.7,2427.4,0.8076]
[1747620128059,4.11946446,2427.5,2427.4,0.8076]
[1747620128236,4.11975801,2427.4,2427.2,0.24768756]
[1747620128419,4.11969007,2427.4,2427.2,0.24768756]
[1747620128962,4.11954421,2427.5,2427.1,8.358]
[1747620129162,4.11932145,2427.6,2427.2,1.66816876]
[1747620129623,1.045,2428.0,2427.2,1.66816876]
[1747620129819,4.1189141,2427.9,2427.3,4.11971535]
[1747620130064,0.8144,2428.4,2427.2,9.66816876]
[1747620130224,4.11969894,2427.4,2427.2,0.8076]
[1747620130428,4.12031314,2427.0,2426.9,0.31073416]
[1747620130655,4.12031314,2427.0,2426.9,8.69573416]
[1747620130927,4.12031314,2427.0,2426.9,0.31073416]
[1747620132449,4.12065271,2426.8,2426.6,8.385]
[1747620133162,4.12031314,2427.0,2426.6,8.385]
[1747620133364,4.12071691,2426.8,2426.6,8.385]
[1747620133529,4.12055722,2426.9,2426.6,8.385]
[1747620133726,1.0135,2427.7,2426.7,4.94443667]
[1747620133950,4.12015672,2427.1,2426.8,0.24743711]
[1747620134161,4.12048292,2426.9,2426.8,0.24743711]
[1747620134343,4.11929477,2427.6,2426.8,8.63343711]
[1747620134537,1.0135,2427.7,2426.9,0.8189]
[1747620134770,1.0135,2427.7,2427.2,4.11985866]
[1747620134771,0.24,2427.7,2427.2,4.11985866]
[1747620134949,0.7831,2428.3,2427.5,4.11946446]
[1747620135150,4.11872165,2428.0,2427.5,0.8189]
[1747620135333,4.11872165,2428.0,2427.6,0.24743711]
[1747620135530,0.7831,2428.3,2427.6,0.24743711]
[1747620135869,4.11827691,2428.2,2427.6,0.24743711]
[1747620136167,4.1176391,2428.6,2427.9,4.11875679]
[1747620136466,4.11725955,2428.8,2428.1,4.11828735]
[1747620136670,4.11725955,2428.8,2428.2,4.11816715]
[1747620136871,2.84823818,2429.2,2428.3,0.55]
[1747620137170,4.11743001,2428.7,2428.3,0.55]
[1747620137372,5.65627731,2429.1,2428.4,0.24743711]
[1747620137669,4.11738972,2428.8,2428.4,8.63243711]
[1747620137869,4.11693397,2429.0,2428.4,8.63243711]
[1747620138028,4.11727119,2428.8,2428.4,8.63243711]
[1747620138330,4.11727119,2428.8,2428.4,9.90748503]
[1747620138767,2.84823818,2429.2,2428.5,8.385]
[1747620138768,4.11769454,2428.6,2428.5,8.385]
[1747620138929,4.11769454,2428.6,2428.5,8.63243711]
[1747620139833,4.11729134,2428.8,2428.5,8.63243711]
[1747620139834,4.11731567,2428.8,2428.5,8.63243711]
[1747620140134,4.11759861,2428.6,2428.5,8.63243711]
[1747620140335,4.11759861,2428.6,2428.5,8.385]
[1747620141172,4.11749101,2428.7,2428.5,8.385]
[1747620141536,4.11700988,2429.0,2428.5,9.2235]
[1747620141773,4.11741537,2428.8,2428.5,8.385]
[1747620142090,4.11759861,2428.6,2428.3,0.31322025]
[1747620142385,4.1176679,2428.6,2428.4,8.384]
[1747620142545,4.1176679,2428.6,2428.4,8.63065234]
[1747620144067,4.11776816,2428.5,2428.4,0.24665234]
[1747620144268,4.52953495,2428.5,2428.4,0.24665234]
[1747620144449,4.11844652,2428.1,2428.0,0.31073416]
[1747620144646,13.38754652,2428.1,2428.0,0.31073416]
[1747620145678,21.62754652,2428.1,2428.0,0.31073416]
[1747620145869,24.2021313,2428.1,2428.0,0.31073416]
[1747620146383,4.11997363,2427.2,2427.1,8.383]
[1747620146802,4.12014338,2427.1,2427.0,26.167]
[1747620147115,4.11929477,2427.6,2427.0,26.167]
[1747620147403,4.11965954,2427.4,2427.1,2.6167]
[1747620147827,4.11981586,2427.3,2427.1,2.6167]
[1747620147959,4.11929477,2427.6,2427.0,17.783]
[1747620148164,4.12014338,2427.1,2427.0,17.783]
[1747620148710,4.11999358,2427.2,2426.6,1.23696388]
[1747620148711,4.12082251,2426.7,2426.6,0.8236]
[1747620149008,4.12048292,2426.9,2426.8,8.384]
[1747620149210,4.11989876,2427.3,2426.8,10.0084]
[1747620149363,4.11952395,2427.5,2426.9,4.12038595]
[1747620149569,4.11995875,2427.3,2426.9,0.55]
[1747620149801,8.46,2427.8,2426.8,1.6244]
[1747620150104,8.46,2427.8,2426.8,0.786]
[1747620150105,4.12048292,2426.9,2426.8,0.786]
[1747620150268,4.12048292,2426.9,2426.8,8.385]
[1747620150466,4.12039203,2427.0,2426.8,8.385]
[1747620150807,4.11943235,2427.6,2426.8,8.385]
[1747620151002,4.12031602,2427.0,2426.8,8.385]
[1747620152494,4.12048292,2426.9,2426.8,8.385]
[1747620153906,8.457,2427.5,2426.8,8.385]
[1747620154121,0.92321,2427.4,2426.8,8.385]
[1747620154302,4.11946446,2427.5,2426.8,12.50563536]
[1747620154507,4.11965484,2427.4,2426.8,8.385]
[1747620154801,4.12006176,2427.2,2426.8,8.385]
[1747620155003,4.11975718,2427.4,2427.0,0.7599]
[1747620155183,4.11963417,2427.4,2427.0,2.14144697]
[1747620155395,4.11991178,2427.3,2427.0,2.14144697]
[1747620155578,4.12004193,2427.2,2427.1,8.386]
[1747620155779,4.12065271,2426.8,2426.6,0.31650899]
[1747620155992,4.12116102,2426.6,2426.5,8.386]
[1747620157822,4.12084207,2426.7,2426.5,8.386]
[1747620158711,4.12099233,2426.6,2426.5,8.386]
[1747620159710,8.686,2427.1,2426.5,8.386]
[1747620159917,4.12078686,2426.8,2426.5,8.386]
[1747620160097,4.12033511,2427.0,2426.5,8.386]
[1747620160302,0.24,2427.1,2426.5,8.386]
[1747620160499,4.12078146,2426.8,2426.5,8.386]
[1747620160691,4.1207509,2426.8,2426.5,8.386]
[1747620161115,4.12054308,2426.9,2426.5,8.386]
[1747620161322,4.12006594,2427.2,2426.7,4.12082251]
[1747620161514,4.12007205,2427.2,2426.7,4.12073163]
[1747620161906,4.1200529,2427.2,2426.8,8.447]
[1747620162109,9.228,2427.7,2426.9,0.55]
[1747620162306,0.24,2428.1,2427.2,0.55]
[1747620162507,0.779,2428.3,2427.3,26.27918981]
[1747620162817,0.779,2428.3,2427.5,0.8175]
[1747620163026,8.80513482,2428.4,2427.7,4.66901438]
[1747620163320,8.80513482,2428.4,2427.8,8.447]
[1747620163321,4.11835601,2428.2,2427.8,8.447]
[1747620163521,4.11828037,2428.2,2427.8,8.447]
[1747620163716,4.11828037,2428.2,2427.8,9.2917]
[1747620164215,9.238,2428.7,2427.5,8.8175]
[1747620164423,4.11861614,2428.0,2427.9,8.446]
[1747620164580,4.11827691,2428.2,2427.5,0.8175]
[1747620164785,4.11827691,2428.2,2427.3,18.341]
[1747620164786,4.11963417,2427.4,2427.3,26.237]
[1747620165993,4.11934505,2427.6,2427.3,26.237]
[1747620166522,4.1194297,2427.6,2427.3,26.237]
[1747620167595,4.11949435,2427.5,2427.3,26.237]
[1747620167822,4.11963417,2427.4,2427.3,26.237]
[1747620168022,4.11949435,2427.5,2427.3,26.237]
[1747620168023,4.11953913,2427.5,2427.3,26.237]
[1747620168222,4.11906465,2427.8,2427.3,28.97350557]
[1747620168423,4.11913172,2427.7,2427.3,26.237]
[1747620168592,4.11942314,2427.6,2427.3,17.791]
[1747620168924,4.11946446,2427.5,2427.4,8.445]
[1747620169146,0.779,2428.2,2427.4,8.445]
[1747620169321,4.11825416,2428.3,2427.8,4.11891495]
[1747620169521,4.11829943,2428.2,2427.9,8.445]
[1747620169702,0.24,2428.4,2427.9,8.445]
[1747620170026,4.11861614,2428.0,2427.9,8.445]
[1747620170222,4.11827691,2428.2,2427.9,8.445]
[1747620170431,4.11903389,2427.8,2427.6,8.0]
[1747620170631,4.11903389,2427.8,2427.5,0.7987]
[1747620171011,4.11903389,2427.8,2427.6,8.445]
[1747620171223,4.35799388,2428.4,2427.7,4.11912509]
[1747620171423,4.11834856,2428.2,2427.8,1.25641251]
[1747620171739,4.11848722,2428.1,2427.8,1.25641251]
[1747620172030,8.684,2428.4,2427.5,0.7987]
[1747620172031,4.11887693,2427.9,2427.5,0.7987]
[1747620172229,4.11895584,2427.8,2427.5,0.7987]
[1747620172434,4.11873189,2428.0,2427.6,8.445]
[1747620172435,4.11884844,2427.9,2427.6,8.445]
[1747620172597,8.684,2428.4,2427.6,8.69055006]
[1747620172801,0.772,2428.6,2428.0,4.11849489]
[1747620172802,4.11775501,2428.6,2428.0,4.11849489]
[1747620173040,4.11760293,2428.6,2428.2,0.7936]
[1747620173213,0.8213,2428.9,2428.2,18.5806]
[1747620173214,4.11725955,2428.8,2428.2,18.5806]
[1747620173417,4.11793773,2428.4,2428.3,8.444]
[1747620173631,4.11751606,2428.7,2428.3,8.444]
[1747620174105,4.11761241,2428.6,2428.3,8.444]
[1747620174305,4.11751417,2428.7,2428.3,11.55829545]
[1747620174841,4.11790358,2428.5,2428.3,11.55829545]
[1747620175132,4.11736628,2428.8,2428.3,8.444]
[1747620175339,4.11727748,2428.8,2428.3,12.56202086]
[1747620175540,4.11727748,2428.8,2428.3,8.444]
[1747620175843,4.11743131,2428.7,2428.3,8.444]
[1747620176659,4.11732255,2428.8,2428.3,12.5620841]
[1747620176856,4.11732255,2428.8,2428.4,3.11426841]
[1747620177031,4.11714198,2428.9,2428.4,3.11426841]
[1747620177969,4.1174133,2428.8,2428.5,8.443]
[1747620178581,4.11712369,2428.9,2428.5,8.443]
[1747620178582,4.11744012,2428.7,2428.5,8.443]
[1747620178881,4.11733645,2428.8,2428.5,8.443]
[1747620179067,4.11733645,2428.8,2428.6,1.15572684]
[1747620179450,0.24,2429.5,2428.7,0.7565]
[1747620179774,0.24,2429.5,2428.4,0.7565]
[1747620179775,4.11776816,2428.5,2428.4,0.7565]
[1747620179947,0.8097,2429.0,2428.2,17.787]
[1747620180147,4.1179669,2428.4,2428.2,26.229]
[1747620180354,0.8097,2429.0,2428.2,29.6519]
[1747620180539,4.11732324,2428.8,2428.3,0.7796]
[1747620180734,0.24,2429.1,2428.7,4.11739179]
[1747620180984,0.24,2429.1,2428.4,0.55]
[1747620180985,0.8009,2429.6,2428.8,9.26277034]
[1747620181152,4.11675724,2429.1,2428.8,0.7796]
[1747620181348,4.91694926,2429.6,2429.0,8.0]
[1747620181612,5.13849758,2430.3,2429.2,8.8045]
[1747620181744,5.13849758,2430.3,2429.4,8.0]
[1747620181952,5.13849758,2430.3,2429.5,12.59912849]
[1747620181953,4.11531765,2430.0,2429.5,12.59912849]
[1747620182243,4.11641213,2429.3,2429.2,0.8045]
[1747620182461,4.11641213,2429.3,2429.2,8.441]
[1747620183179,4.11627047,2429.4,2429.2,8.441]
[1747620183486,4.35485906,2430.3,2429.4,4.9060453]
[1747620183487,4.11535536,2430.0,2429.4,4.9060453]
[1747620183639,4.11535536,2430.0,2429.5,8.5181547]
[1747620183989,4.11525181,2430.0,2429.5,12.5930596]
[1747620184349,4.11525181,2430.0,2429.6,8.441]
[1747620184739,4.11540475,2429.9,2429.6,8.441]
[1747620185076,4.11498011,2430.2,2429.8,0.7899]
[1747620185573,4.11457727,2430.4,2429.8,0.7899]
[1747620185942,4.11492959,2430.2,2429.8,0.7899]
[1747620186473,4.11437975,2430.5,2429.8,1.1028744]
[1747620186681,4.1151842,2430.1,2429.9,1.07941744]
[1747620186983,4.11437975,2430.5,2429.9,1.07941744]
[1747620187186,0.8074,2430.6,2429.9,1.07941744]
[1747620187349,4.11505699,2430.1,2430.0,8.44]
[1747620187545,4.11539569,2429.9,2429.8,0.3129744]
[1747620187789,4.11539569,2429.9,2429.8,8.44]
[1747620188454,4.11441366,2430.5,2429.8,8.439]
[1747620188656,4.11539569,2429.9,2429.8,8.439]
[1747620188984,4.11498283,2430.2,2429.8,8.439]
[1747620188985,8.447,2430.2,2429.8,8.439]
[1747620189149,4.11502616,2430.2,2429.8,8.439]
[1747620189348,4.11502616,2430.2,2429.9,0.7745]
[1747620189660,4.11499059,2430.2,2429.9,0.7745]
[1747620189977,4.11505699,2430.1,2430.0,0.92135]
[1747620190140,4.11505699,2430.1,2430.0,8.447]
[1747620190346,4.11573445,2429.7,2429.6,0.7745]
[1747620190577,4.11487359,2430.3,2429.6,9.2215]
[1747620190778,4.11547693,2429.9,2429.6,9.2215]
[1747620190983,4.11563343,2429.8,2429.6,9.2215]
[1747620191280,4.11563343,2429.8,2429.6,10.17454631]
[1747620191484,0.7695,2430.4,2429.6,10.17454631]
[1747620191787,4.11514399,2430.1,2429.6,14.29041141]
[1747620192146,4.11457461,2430.4,2429.7,4.11566445]
[1747620192341,4.11454904,2430.4,2429.7,1.45991739]
[1747620192586,4.11548409,2429.9,2429.7,1.45991739]
[1747620193081,9.1979,2430.7,2429.8,8.446]
[1747620193082,4.11495191,2430.2,2429.8,8.446]
[1747620193385,4.1148211,2430.3,2429.8,8.446]
[1747620193686,4.11424679,2430.6,2430.1,4.11497045]
[1747620193987,4.1137875,2430.9,2430.4,0.7544]
[1747620194283,4.1137875,2430.9,2430.5,8.446]
[1747620194869,4.11389988,2430.8,2430.5,8.446]
[1747620195181,4.11427573,2430.6,2430.4,0.7544]
[1747620195351,4.11340345,2431.1,2430.5,8.446]
[1747620195545,0.8054,2431.3,2430.5,8.446]
[1747620195751,4.11415688,2430.7,2430.5,8.446]
[1747620195983,4.11392971,2430.8,2430.2,18.25993705]
[1747620196287,4.11471834,2430.3,2430.2,17.773]
[1747620196581,4.11471834,2430.3,2430.2,26.219]
[1747620196912,4.11471834,2430.3,2430.2,17.773]
[1747620197064,4.11573445,2429.7,2429.6,0.31073416]
[1747620197262,13.35223445,2429.7,2429.6,0.31073416]
[1747620197459,13.35523445,2429.7,2429.6,0.31073416]
[1747620197659,15.10231662,2429.7,2429.6,0.31073416]
[1747620199271,15.10231662,2429.7,2428.6,0.30153109]
[1747620199272,4.11782565,2428.5,2428.4,0.7773]
[1747620199484,8.472,2429.2,2428.4,9.2223]
[1747620199687,4.11654879,2429.3,2428.5,0.34374412]
[1747620199979,4.11708543,2429.0,2428.6,0.7773]
[1747620200184,4.11725955,2428.8,2428.7,0.34371581]
[1747620200358,4.11725955,2428.8,2428.7,8.78971581]
[1747620201291,0.7585,2429.7,2428.7,8.446]
[1747620201617,0.7585,2430.3,2429.1,0.7773]
[1747620201754,0.7585,2430.3,2429.3,8.0]
[1747620201755,4.11563396,2429.8,2429.3,8.0]
[1747620202091,4.11488766,2430.2,2429.6,1.3472]
[1747620202255,4.1152043,2430.1,2429.7,8.446]
[1747620202455,4.1152043,2430.1,2429.7,8.75900506]
[1747620203455,4.1147215,2430.3,2429.9,0.7972]
[1747620203656,5.1497595,2431.0,2430.0,0.04114711]
[1747620203990,4.11397945,2430.8,2430.3,8.55]
[1747620204219,4.11319512,2431.2,2430.2,8.7682]
[1747620204357,4.11459547,2430.4,2430.3,8.446]
[1747620204554,4.11471834,2430.3,2430.2,0.7682]
[1747620204775,4.1143482,2430.6,2430.2,2.67175912]
[1747620204961,4.1143482,2430.6,2430.2,11.11775912]
[1747620205179,9.2871,2431.3,2430.2,11.11775912]
[1747620205180,4.11467408,2430.4,2430.2,11.11775912]
[1747620205355,4.11336432,2431.1,2430.2,11.11775912]
[1747620205554,4.11370274,2430.9,2430.2,11.11775912]
[1747620205767,4.11452146,2430.5,2430.3,2.75926139]
[1747620206588,4.11454904,2430.4,2430.3,2.75926139]
[1747620206776,4.11418215,2430.7,2430.3,2.75926139]
[1747620206954,4.11379205,2430.9,2430.4,0.7729]
[1747620207158,4.11389757,2430.8,2430.5,0.35321614]
[1747620207356,9.2811,2431.3,2430.5,0.35321614]
[1747620207553,4.11421048,2430.6,2430.5,0.35321614]
[1747620207792,4.11379012,2430.9,2430.5,8.79821614]
[1747620207996,4.11404122,2430.7,2430.6,0.95711161]
[1747620208813,4.11380783,2430.9,2430.6,0.95711161]
[1747620208977,8.48,2431.5,2430.7,8.445]
[1747620208978,4.11306747,2431.3,2430.7,8.445]
[1747620209305,4.11381682,2430.9,2430.7,8.445]
[1747620209512,4.11312829,2431.3,2430.8,0.7636]